Workbook

Sheet Tableau 1
A1: Tableau 1 : Collections de la BnF au 31 décembre 2019
B3: 2019
A4: Livres et recueils | B4: 15500000
A5: Périodiques (titres) | B5: 400000
A6: Dont vivants | B6: 40000
A7: Manuscrits | B7: 370000
A8: Estampes et photographies | B8: 15500000
A9: Partitions | B9: 2000000
A10: Cartes, plans, globes | B10: 900000
A11: Monnaies et jetons | B11: 440000
A12: Médailles | B12: 150000
A13: Autres objets | B13: 60000
A14: Documents relatifs aux spectacles | B14: 3000000
A15: Enregistrement sonores | B15: 1600000
A16: Vidéogrammes | B16: 330000
A17: Multimédias | B17: 178000
A18: Archives du web (en fichiers collectés (URL)) | B18: 36000000000
A19: En teraoctets | B19: 1200

Sheet Tableau 2
A1: Tableau 2 : Principales entrées par dépôt légal à la BnF
A2: En nombre de dépôts
A4: Type de documents | B4: Dépôt légal éditeur
B5: 2016 | C5: 2017 | D5: 2018 | E5: 2019
A6: Livres | B6: 77986 | C6: 81263 | D6: 82313 | E6: 79582
A7: Périodiques | B7: 250232 | C7: 245420 | D7: 219766 | E7: 212661
A8: Brochures et publications diverses | B8: 17198 | C8: 13025 | D8: 15496 | E8: 11484
A9: Phonogrammes | B9: 8797 | C9: 8230 | D9: 7733 | E9: 8071
A10: Vidéogrammes | B10: 10273 | C10: 10230 | D10: 5770 | E10: 9620
A11: Multimédias | B11: 3455 | C11: 1784 | D11: 1762 | E11: =972+943 -> 1915
A12: Cartes et plans | B12: 2295 | C12: 2263 | D12: 1878 | E12: =2064+234 -> 2298
A13: Estampes | B13: 518 | C13: 282 | D13: 374 | E13: 292
A14: Livres d'artiste | C14: 54 | D14: 34 | E14: 61
A15: Photographies | B15: 150 | C15: 87 | D15: 460 | E15: 236
A16: Monnaies | E16: 77
A17: Affiches illustrées | B17: 546 | C17: 331 | D17: 1034 | E17: 746
A18: Imagerie (cartes postales) | B18: 5320 | C18: 8971 | D18: 7632 | E18: 4546
A19: Partitions | B19: 1773 | C19: 2121 | D19: 2232 | E19: 1492
A20: Internet* | B20: 2.8 | C20: 2.2 | D20: 2.7 | E20: 3.1
A21: Dont collectes larges | B21: 2.1 | C21: 1.4 | D21: 2.1 | E21: 2.3
A22: Dont collectes ciblées | B22: 0.7 | C22: 0.8 | D22: 0.5 | E22: 0.8
A23: *en milliards de fichiers web (URL)

Sheet Tableau 3
A1: Tableau 3 : Monographies entrées par achats, dons, échanges
A2: En nombre de titres
B4: Acquisitions d’ouvrages
B5: 2016 | C5: 2017 | D5: 2018 | E5: 2019
A6: Achats | B6: 43532 | C6: 42590 | D6: 49995 | E6: 54230
A7: Dons | B7: 8014 | C7: 6464 | D7: 7000 | E7: 7421
A8: Échanges | B8: 1945 | C8: 1673 | D8: 2505 | E8: 1308
A9: Total papier | B9: =SUM(B6:B8) -> 53491 | C9: =SUM(C6:C8) -> 50727 | D9: =SUM(D6:D8) -> 59500 | E9: =SUM(E6:E8) -> 62959
A10: Acquisitions numériques* | B10: 1313 | C10: 2297 | D10: 2057 | E10: 1868

Sheet Tableau 4
A1: Tableau 4 : Périodiques entrés par achats, dons, échanges
A2: En nombre de titres
B4: Acquisitions de périodiques (en nombre de titres)
B5: 2016 | C5: 2017 | D5: 2018 | E5: 2019
A6: Achats | B6: 6139 | C6: 5590 | D6: 5584 | E6: 5552
A7: Dons | B7: 1149 | C7: 1073 | D7: 1205 | E7: 958
A8: Echanges | B8: 788 | C8: 769 | D8: 673 | E8: 634
A9: Total papier | B9: =SUM(B6:B8) -> 8076 | C9: =SUM(C6:C8) -> 7432 | D9: =SUM(D6:D8) -> 7462 | E9: =SUM(E6:E8) -> 7144
A10: Acquisitions numériques | B10: courant + rétrospectif de profondeur historique variable

Sheet Tableau 5
A1: Tableau 5 : Documents spécialisés entrés par achats, dons et autres modes d’entrées
A4: Catégories des documents reçus | B4: Achats | E4: Dons et autres modes d’entrées | H4: Total
B5: 2017 | C5: 2018 | D5: 2019 | E5: 2017 | F5: 2018 | G5: 2019 | H5: 2017 | I5: 2018 | J5: 2019
A6: Affiches | B6: 2 | C6: 1 | D6: 25 | E6: 2755 | F6: 1613 | G6: 3665 | H6: =B6+E6 -> 2757 | I6: 1614 | J6: =D6+G6 -> 3690
A7: Cartes, atlas et globes | B7: 1227 | C7: 881 | D7: 825 | E7: 18 | F7: 247 | G7: 10064 | H7: 1245 | I7: 1128 | J7: =D7+G7 -> 10889
A8: Catalogues de ventes et de libraires | B8: 0 | C8: 5 | D8: 0 | E8: 820 | F8: 1007 | G8: 441 | H8: 820 | I8: 1012 | J8: 441
A9: Costumes et accessoires | B9: 1 | C9: 42 | D9: 0 | E9: 15 | G9: 19 | H9: 16 | I9: 42 | J9: 19
A10: Dessins et dessins de presse | B10: 314 | C10: 917 | D10: 688 | E10: 39 | F10: 1621 | G10: 38 | H10: 353 | I10: 2538 | J10: 726
A11: Documents sonores (phonogrammes) | B11: 1753 | C11: 1924 | D11: 1887 | E11: 3280 | F11: 1603 | G11: 775 | H11: 5033 | I11: 3527 | J11: 2662
A12: Dossiers de presse | B12: 0 | D12: 0 | E12: 316 | F12: 354 | G12: 412 | H12: 316 | I12: 354 | J12: 412
A13: Éphémères | D13: 0 | F13: 45 | G13: 0 | J13: 0
A14: Estampes | B14: 20 | C14: 52 | D14: 424 | E14: 233 | F14: 732 | G14: 1121 | H14: 253 | I14: 784 | J14: 1545
A15: Imagerie (cartes postales) | B15: 0 | D15: 0 | E15: 0 | F15: 7643 | G15: 239 | H15: 0 | I15: 7643 | J15: 239
A16: Images animées (vidéogrammes) | B16: 1352 | C16: 1256 | D16: 1087 | E16: 13377 | F16: 13232 | G16: 5822 | H16: 14729 | I16: 14488 | J16: 6909
A17: Livres d’artistes & graphiques | B17: 23 | C17: 47 | D17: 1 | E17: 332 | G17: 0 | H17: 355 | I17: 47 | J17: 1
A18: Manuscrits | B18: 102 | C18: 359 | D18: 166 | E18: 307 | F18: 477 | G18: 51 | H18: 409 | I18: 836 | J18: 217
A19: Maquettes de spectacle | B19: 89 | C19: 7 | D19: 114 | E19: 894 | F19: 2 | G19: 4320 | H19: 983 | I19: 9 | J19: 4434
A20: Monnaies et médailles | B20: 29 | C20: 44 | D20: 0 | E20: 21 | F20: 13 | G20: 0 | H20: 50 | I20: 57 | J20: 0
A21: Multimédia mono et multisupport | B21: 310 | C21: 363 | D21: 249 | E21: 623 | F21: 482 | G21: 301 | H21: 933 | I21: 845 | J21: 550
A22: Musique imprimée | B22: 500 | C22: 124 | D22: 539 | E22: 192 | F22: 73 | G22: 94 | H22: 692 | I22: 197 | J22: 633
A23: Objets | B23: 8 | C23: 2 | D23: 222 | E23: 19 | F23: 265 | G23: 18 | H23: =B23+E23 -> 27 | I23: =C23+F23 -> 267 | J23: 240
A24: Photos du XIXe siècle | B24: 161 | C24: 120 | D24: 49 | E24: 26 | F24: 857 | G24: 42 | H24: 187 | I24: 977 | J24: 91
A25: Photos des XXe et XXIe siècles | B25: 81280 | C25: 255353 | D25: 225480 | E25: 67853 | F25: 52394 | G25: 20010 | H25: 149133 | I25: 307747 | J25: 245490
A26: Portfolios (estampes et photos) | B26: 9 | C26: 4 | D26: 0 | E26: 9 | G26: 0 | H26: 18 | I26: 4 | J26: 0
A27: Programmes de spectacles | B27: 0 | D27: 0 | E27: 7938 | F27: 6341 | G27: 6218 | H27: 7938 | I27: 6341 | J27: 6218
A28: Timbres | B28: 1 | D28: 0 | E28: 0 | G28: 0 | H28: 1 | I28: 0 | J28: 0

Sheet Tableau 6
A1: Tableau 6 : Numérisation (nombre d’images numériques validées)
B3: 2016 | C3: 2017 | D3: 2018 | E3: 2019
A4: Nombre d'images produites en interne* | B4: 2405431 | C4: =1880605+848960 -> 2729565 | D4: 2492838 | E4: 2211000
A5: Nombre d'images produites sur marché | B5: 25367022 | C5: 15130841 | D5: 11800472 | E5: 11604000
A6: Total | B6: =SUM(B4:B5) -> 27772453 | C6: =SUM(C4:C5) -> 17860406 | D6: 14293310 | E6: =SUM(E4:E5) -> 13815000
A8: *l’ensemble de la production interne (départements de la Conservation et de la Reproduction) est ici comptabilisé à l’entrée des chaînes permettant sa diffusion dans Gallica (et non en sortie d’atelier comme en 1.3 du rapport).

Sheet Tableau 7
A1: Tableau 7 : Catalogage courant du dépôt légal des livres et périodiques
B3: 2016 | C3: 2017 | D3: 2018 | E3: 2019
A4: Notices bibliographiques créées | B4: 84896 | C4: 81793 | D4: 88613 | E4: 85138
A5: Notices bibliographiques mises à jour (enrichissement et contrôle) | B5: 49231 | C5: 53654 | D5: 63712 | E5: =15131+46506 -> 61637
A6: Notices d’autorité créées | B6: 22724 | C6: 22196 | D6: 24543 | E6: 22350
A7: Notices d’autorité mises à jour | B7: 22676 | C7: 20275 | D7: 25499 | E7: =11827+13280 -> 25107
A8: Total des notices créées | B8: =B4+B6 -> 107620 | C8: =C4+C6 -> 103989 | D8: =D4+D6 -> 113156 | E8: =E4+E6 -> 107488
A9: Total des notices mises à jour | B9: =B5+B7 -> 71907 | C9: 73929 | D9: 89211 | E9: =E5+E7 -> 86744

Sheet Tableau 8
A1: Tableau 8 : Catalogage courant et rétrospectif par les départements de collections
B3: 2016 | C3: 2017 | D3: 2018 | E3: 2019
A4: Notices bibliographiques produites* | B4: 114494 | C4: 95791 | D4: 94476 | E4: 100732
A5: Notices d’autorité produites | B5: 51247 | C5: 48772 | D5: 49775 | E5: 46612
A6: Total des notices produites | B6: =SUM(B4:B5) -> 165741 | C6: =SUM(C4:C5) -> 144563 | D6: =SUM(D4:D5) -> 144251 | E6: =SUM(E4:E5) -> 147344
A8: *Notices créées ou dérivées

Sheet Tableau 9
A1: Tableau 9 : Dérivation de notices pour les monographies imprimées
B3: 2016 | C3: 2017 | D3: 2018 | E3: 2019
A4: Notices produites | B4: 46463 | C4: 44293 | D4: 43656 | E4: 47178
A5: Notices dérivées | B5: 23912 | C5: 22370 | D5: 24821 | E5: 27651
A6: % de notices dérivées | B6: =B5/B4 -> 0.5146460625 | C6: =C5/C4 -> 0.5050459441 | D6: =D5/D4 -> 0.5685587319 | E6: =E5/E4 -> 0.5860994531
D8: 27157 | E8: 29961
C9: =C5/C8 ->  | D9: 0.9139816622 | E9: =E5/E8 -> 0.9228997697

Sheet Tableau 10
A1: Tableau 10 : Conservation curative
B3: 2016 | C3: 2017 | D3: 2018 | E3: 2019
A4: Nombre de volumes réparés physiquement* | B4: 7967 | C4: =4188+3761 -> 7949 | D4: =7698+488 -> 8186 | E4: =7043+196 -> 7239
A5: Nombre de documents en feuille réparés* | B5: 291923 | C5: 239496 | D5: =242177+24557 -> 266734 | E5: =204826+10398 -> 215224
A6: Reliure main (nombre de volumes) | B6: 652 | C6: 1418 | D6: 1322 | E6: 988
A7: Désinfection (m3) | B7: 24 | C7: 4 | D7: 18 | E7: 16
A8: Objets, maquettes, divers* | B8: 6208 | C8: 14597 | D8: 9339 | E8: =519+1500 -> 2019
A9: Dorures / titrages (nombre de volumes) | B9: 628 | C9: =B9*1.03 -> 646.84 | D9: 1152 | E9: 990
A10: Documents Son | D10: 984 | E10: 1390
A11: Documents Vidéo | D11: 3 | E11: 3
A12: Documents Objet audiovisuel | E12: 6

Sheet Tableau 11
A1: Tableau 11 : Conservation préventive
B3: 2016 | C3: 2017 | D3: 2018 | E3: 2019
A4: Reliure mécanisée (volumes commandés) | B4: 23405 | C4: 24050 | D4: 24879 | E4: 22893
A5: Conditionnement sur mesure (documents)* | B5: 17737 | C5: 16432 | D5: 15459 | E5: 16473
A6: Équipement léger (documents magasin) | B6: 7413 | C6: 6829 | D6: 6121 | E6: 5465
A7: Désacidification (en u.c.) | B7: 17123 | C7: 26660 | D7: 2243 | E7: 5500
A8: *hors équipements réalisés par les départements de collections
